Workbook

Sheet Cover crop worksheet
B1: COVER CROP SEEDING PLAN AND RECORD
B3: Producer: | K3: Cover Crop Purpose
B4: Field Location: | K4: Seeding Date:
B5: Acres: | K5: Seeded by:
G7: PLANNED | P7: APPLIED
B8: Field Number
B9: Fertilization
B10: Seeding Equipment | G10: Drill | S10: FullSeedList
B11: Acres
B12: Seeding Window | G12: April 1 through May 15 – predominantly cool-season species
B13: Planned seeding date | G13: 2022-03-15
B14: Suggested Seeding Depth*
B15: Termination Method | G15: Herbicide
B16: CROP HISTORY
I17: Herbicide(s) applied | N17: Application Date:
B18: Current Crop: | G18: Oats | S18: =CropTable(G21) -> 0
B21: Previous Crop: | S21: =CropTable(G18) -> SmallGrain
B24: PLANNED COVER CROP
B25: Seed Species | D25: Variety | H25: Full Seeding Rate Pounds (lbs/ac) | I25: Percent in Mixture | J25: Planned Seeding Rate lbs/ac | K25: Seed Cost ($/lb) | L25: Total Cost | M25: Acres to Seed | N25: Total Lbs Required | O25: Seeding Depth (Inches) | P25: Potential Herbicide Carry-Over Conflicts, Refer to Herbicide Label
U26: =IF(N21>0,($G13-N21)/30,0) -> 0 | V26: =IF(N22>0,($G13-N22)/30,0) -> 0 | W26: =IF(N18>0,($G13-N18)/30,0) -> 0 | X26: =IF(N19>0,($G13-N19)/30,0) -> 0
A27: 22
A28: 21 | B28: Oats | H28: =IF(AND(ISTEXT(B28),G$10="Drill"),VLOOKUP(B28,SpeciesTable,13,FALSE),IF(AND(ISTEXT(B28),G$10="Broadcast"),VLOOKUP(B28,SpeciesTable,13,FALSE)*1.5,"")) -> 70 | I28: 0.5 | J28: =IF(ISTEXT(B28),H28*I28,"0") -> 35 | K28: 0.47 | L28: =K28*J28 -> 16.45 | N28: =IF(ISTEXT(B28),J28*M28,"") -> 0 | O28: =IF(ISTEXT(B28),VLOOKUP(B28,SpeciesTable,14,FALSE),"") -> .5 - 1.5 | P28: =IF(AND(ISTEXT(B28),ISTEXT(CarryOver(Y28,Z28,AA28,AB28))),CarryOver(Y28,Z28,AA28,AB28),"") ->  | S28: =IF(ISTEXT(B28),VLOOKUP(B28,SpeciesTable,19,FALSE),"") -> 0.25 | T28: =IF(ISTEXT(B28),VLOOKUP(B28,SpeciesTable,20,FALSE),"") -> 0.5 | U28: =IF(ISERROR(VLOOKUP($I$21,CarryOverTable,VLOOKUP($B28,CoverCropTable,2,FALSE),FALSE)),0,VLOOKUP($I$21,CarryOverTable,VLOOKUP($B28,CoverCropTable,2,FALSE),FALSE)) -> 0 | V28: =IF(ISERROR(VLOOKUP($I$22,CarryOverTable,VLOOKUP($B28,CoverCropTable,2,FALSE),FALSE)),0,VLOOKUP($I$22,CarryOverTable,VLOOKUP($B28,CoverCropTable,2,FALSE),FALSE)) -> 0 | W28: =IF(ISERROR(VLOOKUP($I$18,CarryOverTable,VLOOKUP($B28,CoverCropTable,2,FALSE),FALSE)),0,VLOOKUP($I$18,CarryOverTable,VLOOKUP($B28,CoverCropTable,2,FALSE),FALSE)) -> 0 | X28: =IF(ISERROR(VLOOKUP($I$19,CarryOverTable,VLOOKUP($B28,CoverCropTable,2,FALSE),FALSE)),0,VLOOKUP($I$19,CarryOverTable,VLOOKUP($B28,CoverCropTable,2,FALSE),FALSE)) -> 0 | Y28: =IF(U28>U$26,I$21,"") ->  | Z28: =IF(V28>V$26,I$22,"") ->  | AA28: =IF(W28>W$26,I$18,"") ->  | AB28: =IF(X28>X$26,I$19,"") -> 
A29: 22 | H29: =IF(AND(ISTEXT(B29),G$10="Drill"),VLOOKUP(B29,SpeciesTable,13,FALSE),IF(AND(ISTEXT(B29),G$10="Broadcast"),VLOOKUP(B29,SpeciesTable,13,FALSE)*1.5,"")) ->  | J29: 0 | L29: =K29*J29 -> 0 | N29: =IF(ISTEXT(B29),J29*M29,"") ->  | O29: =IF(ISTEXT(B29),VLOOKUP(B29,SpeciesTable,14,FALSE),"") ->  | P29: =IF(AND(ISTEXT(B29),ISTEXT(CarryOver(Y29,Z29,AA29,AB29))),CarryOver(Y29,Z29,AA29,AB29),"") ->  | S29: =IF(ISTEXT(B29),VLOOKUP(B29,SpeciesTable,19,FALSE),"") ->  | U29: 0 | V29: 0 | W29: 0 | X29: =IF(ISERROR(VLOOKUP($I$19,CarryOverTable,VLOOKUP($B29,CoverCropTable,2,FALSE),FALSE)),0,VLOOKUP($I$19,CarryOverTable,VLOOKUP($B29,CoverCropTable,2,FALSE),FALSE)) -> 0
A30: 23 | J30: 0 | L30: 0 | U30: 0 | V30: 0 | W30: 0 | X30: 0
A31: 24 | J31: 0 | L31: 0 | U31: 0 | V31: 0 | W31: 0 | X31: 0
J32: 0 | L32: 0 | N32: =IF(ISTEXT(B32),J32*M32,"") ->  | O32: =IF(ISTEXT(B32),VLOOKUP(B32,SpeciesTable,14,FALSE),"") ->  | P32: =IF(AND(ISTEXT(B32),ISTEXT(CarryOver(Y32,Z32,AA32,AB32))),CarryOver(Y32,Z32,AA32,AB32),"") -> 
J33: 0 | L33: 0
J34: 0 | L34: 0
A35: 25 | J35: 0 | L35: 0 | U35: 0 | V35: 0 | W35: 0 | X35: 0
J36: 0 | L36: 0 | M36: =IF(ISTEXT(B36),G$11,"") ->  | N36: =IF(ISTEXT(B36),J36*M36,"") ->  | O36: =IF(ISTEXT(B36),VLOOKUP(B36,SpeciesTable,14,FALSE),"") ->  | P36: =IF(AND(ISTEXT(B36),ISTEXT(CarryOver(Y36,Z36,AA36,AB36))),CarryOver(Y36,Z36,AA36,AB36),"") -> 
J37: 0 | L37: 0
A38: 26 | J38: =IF(ISTEXT(B38),H38*I38,"0") -> 0 | L38: 0 | M38: =IF(ISTEXT(B38),G$11,"") ->  | U38: 0 | V38: 0 | W38: 0 | X38: 0
A39: 27 | I39: =SUM(I28:I37) -> 0.5 | J39: =IF(ISTEXT(B39),H39*I39,"") ->  | L39: =SUM(L28:L38) -> 16.45 | M39: =IF(ISTEXT(B39),G$11,"") ->  | U39: 0 | V39: 0 | W39: 0 | X39: 0
A40: 28 | S40: =MIN(S28:S39) -> 0.25 | T40: =MIN(T28:T39) -> 0.5 | U40: =IF(ISERROR(VLOOKUP($I$21,CarryOverTable,VLOOKUP(#REF!,CoverCropTable,2,FALSE),FALSE)),0,VLOOKUP($I$21,CarryOverTable,VLOOKUP(#REF!,CoverCropTable,2,FALSE),FALSE)) -> 0 | V40: =IF(ISERROR(VLOOKUP($I$22,CarryOverTable,VLOOKUP(#REF!,CoverCropTable,2,FALSE),FALSE)),0,VLOOKUP($I$22,CarryOverTable,VLOOKUP(#REF!,CoverCropTable,2,FALSE),FALSE)) -> 0 | W40: =IF(ISERROR(VLOOKUP($I$18,CarryOverTable,VLOOKUP(#REF!,CoverCropTable,2,FALSE),FALSE)),0,VLOOKUP($I$18,CarryOverTable,VLOOKUP(#REF!,CoverCropTable,2,FALSE),FALSE)) -> 0 | X40: =IF(ISERROR(VLOOKUP($I$19,CarryOverTable,VLOOKUP(#REF!,CoverCropTable,2,FALSE),FALSE)),0,VLOOKUP($I$19,CarryOverTable,VLOOKUP(#REF!,CoverCropTable,2,FALSE),FALSE)) -> 0

Sheet Table 1 Purpose ratings
A1: Table 1: Cover Crop - Common Species and Properties
A2: Cover Crop | B2: Erosion Reduction | C2: Increase soil organic matter | D2: Capture, recycle, redistribute nutrients in the soil profile | E2: Promote biological nitrogen fixation | F2: Weed suppression | G2: Provide supplemental hay | H2: Provide supplemental grazing | I2: Rooting Depth / Plant Water Use /1 | J2: Minimize / reduce soil compaction | K2: Seed size (Large or Fine) | L2: Crop Type and Seeding Dates /2 /3 | M2: Full Seeding rate, lbs/acre /4 | N2: Seeding depth, inches | O2: Salinity tolerance | P2: C:N Ratio | Q2: Attract Beneficial Insects | R2: Mycorrhizal fungi association
A3: Alfalfa | B3: G | C3: G | D3: G | E3: Y | F3: G | G3: F | H3: F | I3: DH | J3: G | K3: F | L3: CB | M3: 6.5 | N3: .25 - .75 | O3: P | P3: L | Q3: Y | R3: M | S3: 0.25 | T3: 0.75
A4: Alsike clover | B4: G | C4: F | D4: G | E4: Y | F4: G | G4: F | H4: F | I4: SL | J4: P | K4: F | L4: CB | M4: 3 | N4: .25 - .75 | O4: P | P4: L | Q4: Y | R4: M | S4: 0.25 | T4: 0.75
A5: Canola | B5: F | C5: F | D5: G | E5: N | F5: P-G** | G5: F | H5: F | I5: MM | J5: G | K5: F | L5: CB | M5: 5 | N5: .25 - .75 | O5: G | P5: L | Q5: Y | R5: N | S5: 0.5 | T5: 1.5
A6: Chickling vetch | B6: G | C6: F | D6: G | E6: Y | F6: F | G6: F | H6: F | I6: SL | J6: F | K6: L | L6: CB | M6: 50 | N6: .5 - 1.5 | O6: P | P6: L | Q6: Y | R6: M | S6: 0.75 | T6: 2
A7: Common vetch | B7: G | C7: F | D7: F | E7: Y | F7: P | G7: F | H7: F | I7: SM | J7: F | K7: L | L7: CB | M7: 25 | N7: .5 - 1.5 | O7: P | P7: L | Q7: Y | R7: M | S7: 0.5 | T7: 1.5
A8: Crimson clover | B8: G | C8: F | D8: G | E8: Y | F8: G | G8: G | H8: G | I8: SM | J8: F | K8: F | L8: CB | M8: 15 | N8: .25-.75 | O8: P | P8: L | Q8: Y | R8: M | S8: 0.25 | T8: 0.75
A9: Ethiopian cabbage | B9: F | C9: F | D9: G | E9: N | F9: F | G9: F | H9: F | I9: MM | J9: G | K9: F | L9: CB | M9: 5 | N9: .25 - .75 | O9: G | P9: L | Q9: Y | R9: N | S9: 0.5 | T9: 1.5
A10: Flax | B10: F | C10: F | D10: F | E10: N | F10: P | G10: P | H10: P | I10: SM | J10: P | K10: F | L10: CB | M10: 30 | N10: .25-.75 | O10: F | P10: H | Q10: Y | R10: H | S10: 0.5 | T10: 1.5
A11: Hairy vetch | B11: G | C11: F | D11: F | E11: Y | F11: P | G11: F | H11: F | I11: SM | J11: F | K11: L | L11: CB | M11: 15 | N11: .5 - 1.5 | O11: P | P11: L | Q11: Y | R11: M | S11: 1 | T11: 1.5
A12: Kale | B12: F | C12: F | D12: G | E12: N | F12: G | G12: F | H12: F | I12: MM | J12: G | K12: F | L12: CB | M12: 0.5 | N12: .25 - .5 | O12: G | P12: L | Q12: Y | R12: N | S12: 1 | T12: 1.5
A13: Lentils | B13: P | C13: P | D13: F | E13: Y | F13: P | G13: F | H13: F | I13: SL | J13: P | K13: F | L13: CB | M13: 30 | N13: 1-1.5 | O13: P | P13: L | Q13: Y | R13: M | S13: 0.25 | T13: 0.75
A14: Mustard, oriental or brown | B14: F | C14: F | D14: F | E14: N | F14: G | G14: F | H14: F | I14: MH | J14: F | K14: F | L14: CB | M14: 6 | N14: .25 - .75 | O14: P | P14: M | Q14: Y | R14: N | S14: 1 | T14: 1.5
A15: Mustard, tame yellow | B15: F | C15: F | D15: F | E15: N | F15: G | G15: F | H15: F | I15: MH | J15: F | K15: F | L15: CB | M15: 12 | N15: .25 - .75 | O15: P | P15: L | Q15: Y | R15: N | S15: 0.25 | T15: 0.75
A16: Peas | B16: P | C16: P | D16: P | E16: Y | F16: F | G16: G | H16: F | I16: SL | J16: P | K16: L | L16: CB | M16: 70 | N16: 1.5 - 3 | O16: P | P16: L | Q16: Y | R16: M | S16: 0.25 | T16: 0.75
A17: Radishes | B17: P | C17: P | D17: G | E17: N | F17: G | G17: P | H17: G | I17: DH | J17: G | K17: F | L17: CB | M17: 8 | N17: .25 - .5 | O17: P | P17: L | Q17: Y | R17: N | S17: 0.5 | T17: 1.5
A18: Rapeseed | B18: F | C18: F | D18: G | E18: N | F18: F | G18: F | H18: G | I18: MM | J18: G | K18: F | L18: CB | M18: 5 | N18: .25 - .75 | O18: G | P18: L | Q18: Y | R18: N | S18: 0.5 | T18: 1.5
A19: Red clover | B19: G | C19: F | D19: G | E19: Y | F19: G | G19: F | H19: F | I19: SL | J19: P | K19: F | L19: CB | M19: 5 | N19: .25 - .75 | O19: P | P19: L | Q19: Y | R19: M | S19: 0.5 | T19: 1.5
A20: Sugar beets | B20: P | C20: P | D20: G | E20: N | F20: F | G20: P | H20: G | I20: DH | J20: G | K20: F | L20: CB | M20: 4 | N20: .25 - .5 | O20: G | P20: L | Q20: N | R20: N | S20: 0.25 | T20: 0.5
A21: Sweet clover | B21: G | C21: F | D21: F | E21: Y | F21: F | G21: P | H21: F | I21: MM | J21: F | K21: F | L21: CB | M21: 4 | N21: .25 - 1 | O21: F | P21: L | Q21: Y | R21: M | S21: 1 | T21: 1.5
A22: Turnips | B22: P | C22: P | D22: G | E22: N | F22: G | G22: P | H22: G | I22: DH | J22: G | K22: F | L22: CB | M22: 4 | N22: .25-.5 | O22: P | P22: L | Q22: Y | R22: N | S22: 0.25 | T22: 0.75
A23: White clover | B23: G | C23: F | D23: G | E23: Y | F23: G | G23: F | H23: F | I23: SL | J23: P | K23: F | L23: CB | M23: 1.5 | N23: .25 - .75 | O23: P | P23: L | Q23: Y | R23: M | S23: 0.25 | T23: 0.75
A24: Winter camelina | B24: F | C24: F | D24: G | E24: N | F24: F | G24: P | H24: P | I24: ML | J24: G | K24: F | L24: CB | M24: 3 | N24: .25-.5 | O24: P | P24: L | Q24: Y | R24: N | S24: 0.25 | T24: 0.75
A25: Annual Oregon ryegrass | B25: F | C25: G | D25: G | E25: N | F25: F | G25: G | H25: G | I25: MM | J25: P | K25: F | L25: CG | M25: 15 | N25: .5-1.5 | O25: F | P25: M | Q25: Y | R25: L | S25: 0.5 | T25: 1.5
A26: Barley | B26: G | C26: G | D26: F | E26: N | F26: G | G26: F | H26: F | I26: MM | J26: F | K26: L | L26: CG | M26: 50 | N26: .75 - 2 | O26: G | P26: M | Q26: Y | R26: M | S26: 1.5 | T26: 3
A27: Oats | B27: G | C27: G | D27: F | E27: N | F27: F | G27: G | H27: F | I27: MM | J27: F | K27: L | L27: CG | M27: 70 | N27: .5 - 1.5 | O27: F | P27: M | Q27: N | R27: M | S27: 0.25 | T27: 0.5
A28: Spring wheat | B28: G | C28: G | D28: G | E28: N | F28: G | G28: F | H28: F | I28: MH | J28: F | K28: L | L28: CG | M28: 60 | N28: .5 - 1.5 | O28: F | P28: M | Q28: Y | R28: M | S28: 0.25 | T28: 0.75
A29: Tall wheatgrass | B29: G | C29: G | D29: G | E29: N | F29: G | G29: G | H29: G | I29: DH | J29: F | K29: L | L29: CG | M29: 13 | N29: .25 - 1 | O29: G | P29: H | Q29: N | R29: M | S29: 0.25 | T29: 0.75
A30: Triticale | B30: G | C30: G | D30: G | E30: N | F30: G | G30: F | H30: F | I30: MH | J30: F | K30: L | L30: CG | M30: 60 | N30: .5-1.5 | O30: G | P30: M | Q30: Y | R30: M | S30: 0.5 | T30: 1
A31: Winter wheat or rye | B31: G | C31: G | D31: G | E31: N | F31: G | G31: F | H31: F | I31: MH | J31: F | K31: L | L31: CG | M31: 60 | N31: .75 - 2 | O31: G | P31: M | Q31: Y | R31: M | S31: 1 | T31: 1.5
A32: Buckwheat | B32: G | C32: F | D32: G | E32: N | F32: G | G32: P | H32: P | I32: SL | J32: P | K32: F | L32: WB | M32: 50 | N32: .5 - 1.5 | O32: P | P32: L | Q32: Y | R32: N | S32: 0.5 | T32: 1.5
A33: Cowpeas | B33: P | C33: P | D33: F | E33: Y | F33: G | G33: F | H33: F | I33: SL | J33: F | K33: L | L33: WB | M33: 30 | N33: 1 - 1.5 | O33: P | P33: L | Q33: Y | R33: M | S33: 0.5 | T33: 1.5
A34: Dry beans | B34: P | C34: P | D34: F | E34: Y | F34: G | G34: F | H34: F | I34: SL | J34: F | K34: L | L34: WB | M34: 30 | N34: 1 - 1.5 | O34: P | P34: L | Q34: Y | R34: M | S34: 0.25 | T34: 0.5
A35: Safflowers | B35: F | C35: F | D35: G | E35: N | F35: F | G35: P | H35: P | I35: DM | J35: F | K35: L | L35: WB | M35: 30 | N35: .5-1 | O35: F | P35: M | Q35: Y | R35: M | S35: 0.5 | T35: 1
A36: Soybeans | B36: P | C36: P | D36: F | E36: Y | F36: P-G** | G36: F | H36: F | I36: SM | J36: P | K36: L | L36: WB | M36: 35 | N36: 1-1.5 | O36: P | P36: L | Q36: Y | R36: M | S36: 1.5 | T36: 2
A37: Sunflowers | B37: F | C37: F | D37: G | E37: N | F37: F | G37: P | H37: G | I37: DM | J37: F | K37: L | L37: WB | M37: 7 | N37: .5-1 | O37: F | P37: M | Q37: Y | R37: M | S37: 0.25 | T37: 1
A38: Sunn hemp | B38: F | C38: F | D38: F | E38: Y | F38: G | G38: P | H38: P | I38: DM | J38: F | K38: L | L38: WB | M38: 15 | N38: 1.5-2 | O38: P | P38: L | Q38: Y | R38: Y | S38: 0.25 | T38: 1
A39: Corn | B39: G | C39: G | D39: G | E39: N | F39: P-G** | G39: F | H39: F | I39: DH | J39: G | K39: L | L39: WG | M39: 12 | N39: 1-1.5 | O39: P | P39: H | Q39: N | R39: H | S39: 0.125 | T39: 0.25
A40: Forage sorghum | B40: G | C40: G | D40: G | E40: N | F40: G | G40: G | H40: F | I40: MM | J40: G | K40: L | L40: WG | M40: 15 | N40: .5 - 1.5 | O40: F | P40: M | Q40: Y | R40: H | S40: 0.5 | T40: 1.5
A41: Grain sorghum | B41: G | C41: G | D41: G | E41: N | F41: G | G41: G | H41: F | I41: MM | J41: G | K41: L | L41: WG | M41: 5 | N41: .5 - 1.5 | O41: F | P41: M | Q41: Y | R41: H | S41: 0.25 | T41: 0.5
A42: Millet | B42: G | C42: G | D42: F | E42: N | F42: G | G42: G | H42: F | I42: SL | J42: F | K42: F | L42: WG | M42: 25 | N42: .25-.75 | O42: P | P42: M | Q42: N | R42: H | S42: 0.25 | T42: 0.75
A43: Sudangrass | B43: G | C43: G | D43: G | E43: N | F43: G | G43: G | H43: G | I43: MM | J43: G | K43: L | L43: WG | M43: 8 | N43: .5 - 1.5 | O43: F | P43: M | Q43: Y | R43: H | S43: 0.25 | T43: 0.5
A44: Teff grass | B44: F | C44: G | D44: F | E44: N | F44: F | G44: G | H44: F | I44: SM | J44: P | K44: F | L44: WG | M44: 5 | N44: .13 - .25 | O44: P | P44: M | Q44: N | R44: N/A | S44: 0.75 | T44: 2
A46: /1 Rooting Depth/Water Use | H46: /2 Crop types | N46: Ratings
A47: SL= | B47: Shallow rooted/Low water use | H47: CG= | I47: cool season grass | N47: L= | O47: Low | Q47: G= | R47: Good
A48: SM= | B48: Shallow rooted/Medium water use | H48: CB= | I48: cool season broadleaf | N48: M= | O48: Medium | Q48: F= | R48: Fair
A49: SH= | B49: Shallow rooted/High water use | H49: WB= | I49: warm season broadleaf | N49: H= | O49: High | Q49: P= | R49: Poor
A50: ML= | B50: Medium rooted/Low water use | H50: WG= | I50: warm season grass | N50: Y= | O50: Yes
A51: MM= | B51: Medium rooted/Medium water use | N51: N = | O51: No or None
A52: MH= | B52: Medium rooted/High water use | N52: N/A= | O52: Not Available
A53: DL= | B53: Deep rooted/Low water use | H53: Shallow | I53: 6 - 18 inches | L53: *Variable depending on seed size and row spacing.
A54: DM= | B54: Deep rooted/Medium water use | H54: Medium | I54: 18 - 24 inches | L54: **Poor weed competitor, but herbicide-tolerant
A55: DH= | B55: Deep rooted/High water use | H55: Deep | I55: 24 + inches | L55: varieties are available.
A57: /3 Seeding Dates
A58: April 1 through May 15 – predominantly cool-season species
A59: May 15 through August 1 – predominantly warm-season species
A60: August 1 through October 1 – predominantly cool-season species
A61: Seeding dates fluctuate annually. The dates listed above are averages that maybe changed
A62: 10 days in either direction depending on current climatic conditions.
A63: '/4 "Full Seeding rates" - should be multiplied by the percent desired if mixtures are used.

Sheet Recommended Cover Crop Mixes
A1: Recommended Cover Crop Mixes for South Dakota | I1: 2015
B3: Species | D3: Variety | I3: Percent
B6: Cool Season Grazing
B7: CSB - legume | D7: field pea, lentil, common vetch, crimson clover | I7: 10-30%
B8: Brassica* | D8: dwarf essex rape, radish, turnip, hybrids | I8: 0-40%
B9: CSB | D9: flax, camelina | I9: 0-15%
B10: CSG | D10: oats, barley, wheat, rye, triticale, annual ryegrass | I10: 15-30%
B13: Warm Season Grazing
B14: WSB | D14: sunflower, cowpea, soybean, buckwheat | I14: 0-20%
B15: CSB | D15: flax, camelina | I15: 0-15%
B16: WSG | D16: millet, teff, sorghum-sudan, corn | I16: 20-60%
B17: Brassica | D17: dwarf essex rape, radish, turnip, hybrids | I17: 0-40%
B19: Compaction
B20: CSG | D20: oats, barley, wheat, rye, triticale, annual ryegrass | I20: 10-50%
B21: CSB - legume | D21: field pea, lentil, common vetch, crimson clover, chickling vetch | I21: 0-20%
B22: WSG | D22: sorghum-sudan, teff | I22: 0-40%
B23: WSB | D23: Sunflower, safflower | I23: 0-15%
B24: Brassica | D24: dwarf essex rape, radish, Barkant turnip, hybrids | I24: 20-40%
B26: Residue Cycling
B27: CSB - legume | D27: field pea, lentil, common vetch, crimson clover, chickling vetch | I27: 20-40%
B28: CSB | D28: flax, camelina | I28: 0-15%
B29: Brassica | D29: dwarf essex rape, radish, mustard, ethiopian cabbage, hybrids | I29: 25-40%
B30: WSG | D30: millet, teff | I30: 0-10%
B31: WSB - legume | D31: cowpea, soybean, sunn hemp | I31: 0-15%
B32: CSG | D32: Oat, annual ryegrass, barley | I32: 10-30%
B34: Soil Health - Increase crop diversity and organic matter
B35: CSB - legume | D35: field pea, lentil, common vetch, crimson clover, chickling vetch | I35: 10-30%
B36: CSB | D36: flax, camelina | I36: 5-15%
B37: Brassica | D37: dwarf essex rape, radish, mustard, ethiopian cabbage, hybrids | I37: 5-40%
B38: WSB | D38: Sunflower, safflower, buckwheat | I38: 0-15%
B39: WSG | D39: millet, teff, sorghum-sudan, sudangrass | I39: 0-30%
B40: WSB - legume | D40: cowpea, soybean, sunn hemp | I40: 0-15%
B41: CSG | D41: Oat, annual ryegrass, barley | I41: 10-30%
B43: Aerial Seed into Corn going to Soybean
B44: CSB - legume | D44: crimson clover, common vetch, red clover | I44: 0-15%
B45: Brassica | D45: dwarf essex rape, radish, turnips, hybrids | I45: 15-40%
B46: CSG | D46: winter wheat/rye/triticale, annual ryegrass | I46: 40-70%
H47: Crimson | I47: 20
H48: Rape | I48: 10
F49: Millborn Hi Fly | H49: Radish | I49: 20
H50: Turnip | I50: 20
H51: Ryegrass | I51: 30
B56: N Fixation and Nutrient Cycling
B57: CSB - legume | D57: field pea, lentil, common vetch, crimson clover, chickling vetch | I57: 40-70%
B58: Brassica | D58: dwarf essex rape, radish, turnip, hybrids | I58: 10-30%
B59: WSB - legume | D59: cowpea, soybean, sunn hemp | I59: 0-15%
B60: CSG | D60: oat, barley, annual ryegrass | I60: 10-20%
B62: Spring Moisture Utilization and N Fixation
B63: CSB - legume | D63: field pea, lentil, common vetch, crimson clover, chickling vetch | I63: 10-25%
B64: WSB - legume | D64: cowpea, soybean, sunn hemp | I64: 0-25%
B65: CSG | D65: winter wheat, rye, triticale | I65: 50-80%
B67: Spring Moisture Utilization, Nutrient Cycling, N Fixation
B68: CSB - legume | D68: field pea, lentil, common vetch, crimson clover, chickling vetch | I68: 0-15%
B69: Brassica | D69: dwarf essex rape, radish, hybrids | I69: 15-40%
B70: WSB - legume | D70: cowpea, soybean, sunn hemp | I70: 0-15%
B71: CSG | D71: winter wheat, rye, triticale, annual ryegrass | I71: 50-85%
B73: Aerial Seed into Soybean going to Corn
B74: CSB - legume | D74: crimson clover, common vetch, red clover | I74: 40-70%
B75: Brassica | D75: dwarf essex rape, radish, turnips, hybrids | I75: 10-25%
B76: CSG | D76: winter wheat/rye/triticale, annual ryegrass | I76: 10-25%
B78: Salinity
B79: Brassica | D79: dwarf essex rape, winter canola | I79: 10-30%
B80: CSG | D80: barley, rye, triticale | I80: 70-90%
B82: Wildlife
B83: CSB - legume | D83: field pea, lentil, common vetch, crimson clover, chickling vetch, red clover | I83: 10-30%
B84: CSB | D84: flax, camelina | I84: 5-15%
B85: Brassica | D85: dwarf essex rape, radish, mustard, ethiopian cabbage, hybrids | I85: 10-50%
B86: WSB | D86: Sunflower, safflower, buckwheat | I86: 0-15%
B87: WSG | D87: millet, teff, sorghum-sudan, grain sorghum sudangrass | I87: 0-30%
B88: WSB - legume | D88: cowpea, soybean, sunn hemp | I88: 0-15%
B89: CSG | D89: Oat, annual ryegrass, barley | I89: 10-30%
A92: *Brassicas include: Canola, ethiopian cabbage, kale, mustard, radish, rapeseed (dwarf essex), turnip, and hybrids of these species.

Sheet Aerial Seeding in SB (hidden)
A1: Guidelines for success when aerial applying cover crops into standing soybeans:
A3: 1. Start aerial application of cover crops when the soybean plant is showing 25-50% yellowing of leaves.
A5: 2. Aerial apply cover crops when 40-50% of the sunlight can reach the ground between the rows.
A6: (Walk in the field a few rows to determine this)
A8: 3. For success, do not fly cover crops into soybeans that are immature (still very green). The
A9: seeds will most likely germinate and then mold (not enough sunlight to conduct photosynthesis
A10: and too moist of conditions).
A12: 4. Rule of thumb…don't plant in the full shade.
A32: The field condition above is ideal for aerial application of cover crops

Sheet Aerial Seeding in Corn (hidden)
A1: Guidelines for success when aerial applying cover crops into standing corn:
A3: 1. Aerial apply cover crops when the corn plant is dried approximately to the ear.
A5: 2. Aerial apply cover crops when approximately 50% of the sunlight can reach the ground between the
A6: rows. (Walk in the field a few rows to determine this.)
A8: 3. For success, do not fly cover crops into corn that is im- mature (still very green). The seeds
A9: will most likely germinate and then mold (not enough sunlight to con- duct photosynthesis and too
A10: moist of conditions).
A41: The field condition above is ideal for aerial application of cover crops

Sheet DATA (hidden)
B3: April 1 through May 15 – predominantly cool-season species
B4: May 15 through August 1 – predominantly warm-season species | I4: Reduce erosion from wind and water
B5: August 1 through October 1 – predominantly cool-season species | I5: Maintain and increase soil health and organic matter content
I6: Reduce water quality degradation by utilizing excessive soil nutrients
I7: Suppress excessive weed pressures and break pest cycles
B8: Crimp | I8: Improve soil moisture use efficiency
B9: Frost | I9: Minimize soil compaction
B10: Harvest
B11: Herbicide
B12: Mow | D12: =NOW() -> 2022-04-01T13:28:19.820 | E12: =MONTH(D12) -> 4 | G12: =YEAR(D12) -> 2022
B13: Tillage | D13: =DATEVALUE(H13) -> 2020-01-15 | E13: 1 | F13: 15 | G13: =G12-2 -> 2020 | H13: =CONCATENATE(E13,"/",15,"/",G13) -> 1/15/2020
D14: =DATEVALUE(H14) -> 2020-02-15 | E14: =E13+1 -> 2 | F14: 15 | G14: =G13 -> 2020 | H14: =CONCATENATE(E14,"/",15,"/",G14) -> 2/15/2020
D15: 2020-03-15 | E15: 3 | F15: 15 | G15: =G14 -> 2020 | H15: 3/15/2020
B16: Starter only | D16: 2020-04-15 | E16: 4 | F16: 15 | G16: 2020 | H16: 4/15/2020
B17: Starter & inoculant | D17: 2020-05-15 | E17: 5 | F17: 15 | G17: 2020 | H17: 5/15/2020
B18: None | D18: 2020-06-15 | E18: 6 | F18: 15 | G18: 2020 | H18: 6/15/2020
B19: Inoculant only | D19: 2020-07-15 | E19: 7 | F19: 15 | G19: 2020 | H19: 7/15/2020
D20: 2020-08-15 | E20: 8 | F20: 15 | G20: 2020 | H20: 8/15/2020
D21: 2020-09-15 | E21: 9 | F21: 15 | G21: 2020 | H21: 9/15/2020
B22: Drill | D22: 2020-10-15 | E22: 10 | F22: 15 | G22: 2020 | H22: 10/15/2020
B23: Broadcast | D23: 2020-11-15 | E23: 11 | F23: 15 | G23: 2020 | H23: 11/15/2020
D24: 2020-12-15 | E24: 12 | F24: 15 | G24: 2020 | H24: 12/15/2020
D25: 2021-01-15 | E25: 1 | F25: 15 | G25: =G24+1 -> 2021 | H25: 1/15/2021
D26: 2021-02-15 | E26: =E25+1 -> 2 | F26: 15 | G26: =G25 -> 2021 | H26: 2/15/2021
D27: 2021-03-15 | E27: 3 | F27: 15 | G27: =G26 -> 2021 | H27: 3/15/2021
D28: 2021-04-15 | E28: 4 | F28: 15 | G28: 2021 | H28: 4/15/2021
D29: 2021-05-15 | E29: 5 | F29: 15 | G29: 2021 | H29: 5/15/2021
D30: 2021-06-15 | E30: 6 | F30: 15 | G30: 2021 | H30: 6/15/2021
D31: 2021-07-15 | E31: 7 | F31: 15 | G31: 2021 | H31: 7/15/2021
D32: 2021-08-15 | E32: 8 | F32: 15 | G32: 2021 | H32: 8/15/2021
D33: 2021-09-15 | E33: 9 | F33: 15 | G33: 2021 | H33: 9/15/2021
A34: Alfalfa | D34: 2021-10-15 | E34: 10 | F34: 15 | G34: 2021 | H34: 10/15/2021
A35: Alsike clover | D35: 2021-11-15 | E35: 11 | F35: 15 | G35: 2021 | H35: 11/15/2021
A36: Annual Oregon ryegrass | D36: 2021-12-15 | E36: 12 | F36: 15 | G36: 2021 | H36: 12/15/2021
A37: Canola | D37: 2022-01-15 | E37: 1 | F37: 15 | G37: =G36+1 -> 2022 | H37: 1/15/2022
A38: Crimson clover | D38: 2022-02-15 | E38: =E37+1 -> 2 | F38: 15 | G38: =G37 -> 2022 | H38: 2/15/2022
A39: Ethiopian cabbage | D39: 2022-03-15 | E39: 3 | F39: 15 | G39: =G38 -> 2022 | H39: 3/15/2022
A40: Kale | D40: 2022-04-15 | E40: 4 | F40: 15 | G40: 2022 | H40: 4/15/2022
A41: Millet | D41: 2022-05-15 | E41: 5 | F41: 15 | G41: 2022 | H41: 5/15/2022
A42: Mustard, oriental or brown | D42: 2022-06-15 | E42: 6 | F42: 15 | G42: 2022 | H42: 6/15/2022
A43: Mustard, tame yellow | D43: 2022-07-15 | E43: 7 | F43: 15 | G43: 2022 | H43: 7/15/2022
A44: Radishes | D44: 2022-08-15 | E44: 8 | F44: 15 | G44: 2022 | H44: 8/15/2022
A45: Rapeseed | D45: =DATEVALUE(H45) -> 2022-09-15 | E45: =E44+1 -> 9 | F45: 15 | G45: =G44 -> 2022 | H45: =CONCATENATE(E45,"/",15,"/",G45) -> 9/15/2022
A46: Red clover | D46: 2022-10-15 | E46: =E45+1 -> 10 | F46: 15 | G46: =G45 -> 2022 | H46: 10/15/2022
A47: Winter wheat or rye | D47: 2022-11-15 | E47: =E46+1 -> 11 | F47: 15 | G47: =G46 -> 2022 | H47: 11/15/2022
A48: Sweet clover | D48: 2022-12-15 | E48: =E47+1 -> 12 | F48: 15 | G48: =G47 -> 2022 | H48: 12/15/2022
A49: Teff grass | D49: 2023-01-15 | E49: 1 | F49: 15 | G49: =G48+1 -> 2023 | H49: 1/15/2023
A50: Triticale | D50: 2023-02-15 | E50: =E49+1 -> 2 | F50: 15 | G50: =G49 -> 2023 | H50: 2/15/2023
A51: Turnips | D51: 2023-03-15 | E51: 3 | F51: 15 | G51: =G50 -> 2023 | H51: 3/15/2023
A52: White clover | D52: 2023-04-15 | E52: 4 | F52: 15 | G52: 2023 | H52: 4/15/2023
A53: Winter camelina | D53: 2023-05-15 | E53: 5 | F53: 15 | G53: 2023 | H53: 5/15/2023
D54: 2023-06-15 | E54: 6 | F54: 15 | G54: 2023 | H54: 6/15/2023
D55: 2023-07-15 | E55: 7 | F55: 15 | G55: 2023 | H55: 7/15/2023
A56: Alfalfa | B56: 6 | D56: 2023-08-15 | E56: 8 | F56: 15 | G56: 2023 | H56: 8/15/2023
A57: Alsike clover | B57: 7 | D57: 2023-09-15 | E57: 9 | F57: 15 | G57: 2023 | H57: 9/15/2023
A58: Annual oregon ryegrass | B58: 8 | D58: 2023-10-15 | E58: 10 | F58: 15 | G58: 2023 | H58: 10/15/2023
A59: Barley | B59: 9 | D59: 2023-11-15 | E59: 11 | F59: 15 | G59: 2023 | H59: 11/15/2023
A60: Buckwheat | B60: 10 | D60: 2023-12-15 | E60: 12 | F60: 15 | G60: 2023 | H60: 12/15/2023
A61: Canola | B61: 11 | D61: 2024-01-15 | E61: 1 | F61: 15 | G61: =G60+1 -> 2024 | H61: 1/15/2024
A62: Chickling vetch | B62: 12 | D62: 2024-02-15 | E62: =E61+1 -> 2 | F62: 15 | G62: =G61 -> 2024 | H62: 2/15/2024
A63: Common vetch | B63: 13 | D63: 2024-03-15 | E63: 3 | F63: 15 | G63: =G62 -> 2024 | H63: 3/15/2024
A64: Corn | B64: 14 | D64: 2024-04-15 | E64: 4 | F64: 15 | G64: 2024 | H64: 4/15/2024
A65: Cowpeas | B65: 15 | D65: 2024-05-15 | E65: 5 | F65: 15 | G65: 2024 | H65: 5/15/2024
A66: Crimson clover | B66: 16 | D66: 2024-06-15 | E66: 6 | F66: 15 | G66: 2024 | H66: 6/15/2024
A67: Dry beans | B67: 17 | D67: 2024-07-15 | E67: 7 | F67: 15 | G67: 2024 | H67: 7/15/2024
A68: Ethiopian cabbage | B68: 18 | D68: 2024-08-15 | E68: 8 | F68: 15 | G68: 2024 | H68: 8/15/2024
A69: Flax | B69: 19 | D69: 2024-09-15 | E69: 9 | F69: 15 | G69: 2024 | H69: 9/15/2024
A70: Forage sorghum | B70: 20 | D70: 2024-10-15 | E70: 10 | F70: 15 | G70: 2024 | H70: 10/15/2024
A71: Grain sorghum | B71: 21 | D71: 2024-11-15 | E71: 11 | F71: 15 | G71: 2024 | H71: 11/15/2024
A72: Hairy vetch | B72: 22 | D72: 2024-12-15 | E72: 12 | F72: 15 | G72: 2024 | H72: 12/15/2024
A73: Kale | B73: 23 | D73: =DATEVALUE(H73) -> 2025-01-15 | E73: 1 | F73: 16 | G73: =G72+1 -> 2025 | H73: =CONCATENATE(E73,"/",15,"/",G73) -> 1/15/2025
A74: Lentils | B74: 24 | D74: 2025-02-15 | E74: =E73+1 -> 2 | F74: 17 | G74: =G73 -> 2025 | H74: 2/15/2025
A75: Millet | B75: 25 | D75: 2025-03-15 | E75: 3 | F75: 18 | G75: 2025 | H75: 3/15/2025
A76: Mustard, oriental or brown | B76: 26 | D76: 2025-04-15 | E76: 4 | F76: 19 | G76: 2025 | H76: 4/15/2025
A77: Mustard, tame yellow | B77: 27 | D77: 2025-05-15 | E77: 5 | F77: 20 | G77: 2025 | H77: 5/15/2025
A78: Oats | B78: 28 | D78: 2025-06-15 | E78: 6 | F78: 21 | G78: 2025 | H78: 6/15/2025
A79: Peas | B79: 29 | D79: 2025-07-15 | E79: 7 | F79: 22 | G79: 2025 | H79: 7/15/2025
A80: Radishes | B80: 30 | D80: 2025-08-15 | E80: 8 | F80: 23 | G80: 2025 | H80: 8/15/2025
A81: Rapeseed | B81: 31 | D81: 2025-09-15 | E81: 9 | F81: 24 | G81: 2025 | H81: 9/15/2025
A82: Red clover | B82: 32 | D82: 2025-10-15 | E82: 10 | F82: 25 | G82: 2025 | H82: 10/15/2025
A83: Safflowers | B83: 33 | D83: 2025-11-15 | E83: 11 | F83: 26 | G83: 2025 | H83: 11/15/2025
A84: Soybeans | B84: 34 | D84: 2025-12-15 | E84: 12 | F84: 27 | G84: 2025 | H84: 12/15/2025
A85: Spring wheat | B85: 35 | D85: 2026-01-15 | E85: 1 | F85: 28 | G85: =G84+1 -> 2026 | H85: 1/15/2026
A86: Sudangrass | B86: 36 | D86: 2026-02-15 | E86: 2 | F86: 29 | G86: 2026 | H86: 2/15/2026
A87: Sugar beets | B87: 37 | D87: 2026-03-15 | E87: 3 | F87: 30 | G87: 2026 | H87: 3/15/2026
A88: Sunflowers | B88: 38 | D88: 2026-04-15 | E88: 4 | F88: 31 | G88: 2026 | H88: 4/15/2026
A89: Sunn hemp | B89: 39 | D89: 2026-05-15 | E89: 5 | F89: 32 | G89: 2026 | H89: 5/15/2026
A90: Sweet clover | B90: 40 | D90: 2026-06-15 | E90: 6 | F90: 33 | G90: 2026 | H90: 6/15/2026
A91: Tall wheatgrass | B91: 41 | D91: 2026-07-15 | E91: 7 | F91: 34 | G91: 2026 | H91: 7/15/2026
A92: Teff grass | B92: 42 | D92: 2026-08-15 | E92: 8 | F92: 35 | G92: 2026 | H92: 8/15/2026
A93: Triticale | B93: 43 | D93: 2026-09-15 | E93: 9 | F93: 36 | G93: 2026 | H93: 9/15/2026
A94: Turnips | B94: 44 | D94: 2026-10-15 | E94: 10 | F94: 37 | G94: 2026 | H94: 10/15/2026
A95: White clover | B95: 45 | D95: 2026-11-15 | E95: 11 | F95: 38 | G95: 2026 | H95: 11/15/2026
A96: Winter camelina | B96: 46 | D96: 2026-12-15 | E96: 12 | F96: 39 | G96: 2026 | H96: 12/15/2026
A97: Winter wheat or rye | B97: 37
B100: Alfalfa | C100: Grass | D100: SmallGrain | E100: Corn | F100: Soybeans | G100: Sunflowers | H100: Safflowers | I100: Canola | J100: Flax | K100: DryBeans | L100: FieldPeas | M100: Chickpeas | N100: Lentils | O100: Sorghum
A101: Alfalfa | B101: Butyrac | C101: 2,4-D amine | D101: 2,4-D amine | E101: 2,4-D | F101: Aim EW | G101: Assert | H101: Defol | I101: Assure II | J101: Aim | K101: Aim | L101: Aim | M101: Aim | N101: Aim | O101: 2,4-D
A102: Barley | B102: Diquat | C102: 2,4-D ester | D102: 2,4-D ester | E102: Accent | F102: Amplify | G102: Assure II | H102: Dual II Magnum | I102: Beyond | J102: Assure II | K102: Assure II | L102: Assure II | M102: Assure II | N102: Assure II | O102: Aim
A103: Buckwheat | B103: Glyphosate | C103: Ally | D103: Achieve | E103: Accent Gold | F103: Assure II | G103: Beyond | H103: Eptam | I103: Glyphosate | J103: Basagran | K103: Basagran | L103: Basagran | M103: Cinch | N103: Far-go | O103: Atrazine
A104: Canola | B104: Gramoxone | C104: Amber | D104: Affinity | E104: Acetochlor | F104: Authority First | G104: Defol | H104: Glyphosate | I104: Liberty | J104: Bromoxynil | K104: Cinch | L104: Cinch | M104: Dual | N104: Glyphosate | O104: Avalanche
A105: Chickpeas | B105: Kerb | C105: Banvel | D105: Agility | E105: Aim | F105: Authority MTZ | G105: Dual | H105: Gramoxone | I105: Poast | J105: Curtail M | K105: Defol | L105: Command | M105: Far-go | N105: Outlook | O105: Basagran
A106: Corn | B106: Poast | C106: Brash | D106: Aim | E106: Atrazine | F106: Autumn | G106: Eptam | H106: Parallel | I106: Select | J106: Defol | K106: Dual | L106: Dual | M106: Glyphosate | N106: Paraquat | O106: Bicep II Magnum
A107: Corn Silage | B107: Poast Plus | C107: Cimarron Max | D107: Ally | E107: Autumn | F107: Axiom | G107: Eptam | H107: Poast | I107: Sonalan | J107: Glyphosate | K107: Eptam | L107: Far-go | M107: Outlook | N107: Pendimethalin | O107: Bicep Lite II Magnum
A108: Dry Beans | B108: Pursuit | C108: Clarity | D108: Ally Extra | E108: Balance | F108: Basagran | G108: Glyphosate | H108: Select | I108: Stinger | J108: MCPA Ester | K108: Glyphosate | L108: Glyphosate | M108: Paraquat | N108: Poast | O108: Bromoxynil
A109: Field Peas | B109: Raptor | C109: Crossbow | D109: Amber | E109: Basagran | F109: Blazer | G109: Gramoxone | H109: Sonalan | I109: Trifluralin | J109: Poast | K109: Intrro | L109: Paraquat | M109: Pendimethalin | N109: Pursuit | O109: Bullet
A110: Flax | B110: Select | C110: Curtail | D110: Assert | E110: Basis | F110: Boundary | G110: Poast | H110: Stalwart | J110: Select | K110: Outlook | L110: Pendimethalin | M110: Poast | N110: Select Max | O110: Cinch
A111: Grass | B111: Sencor | C111: Escort | D111: Avenge | E111: Beacon | F111: Butyrac | G111: Prowl | H111: Trifluralin | J111: Treflan | K111: Paraquat | L111: Poast | M111: Pursuit | N111: Sencor | O111: Cinch ATZ Lite
A112: Lentils | B112: Sinbar | C112: Glyphosate | D112: Axial | E112: Bicep | F112: Classic | G112: Select | K112: Pendimethalin | L112: Pursuit | M112: Select | N112: Sonalan | O112: Degree Xtra
A113: Melons | B113: Treflan | C113: Gramoxone Max | D113: Banvel | E113: Breakfree | F113: Cobra | G113: Sonalan | K113: Permit | L113: Raptor | M113: Sonalan | N113: Trifluralin | O113: Dicamba
A114: Millet | B114: Velpar | C114: Grazon | D114: Beyond | E114: Bromoxynil | F114: Command | G114: Spartan | K114: Poast | L114: Select | M114: Spartan | O114: Dual II Magnum
A115: Mustard | B115: Fallow | C115: Milestone | D115: Bromoxynil | E115: Bullet | F115: Define | G115: Trifluralin | K115: Pursuit | L115: Sencor | M115: Trifluralin | O115: Establish
A116: Oats | C116: Overdrive | D116: Clarity | E116: Callisto | F116: Domain | K116: Raptor | L116: Sonalan | O116: Expert
A117: Potatoes | C117: Plateau | D117: Cleanwave | E117: Camix | F117: Dual II Magnum | K117: Reflex | L117: Spartan | O117: Fallowmaster
A118: Rapeseed | C118: Rave | D118: Clearmax | E118: Celebrity Plus | F118: Encompass | K118: Rezult B&G | L118: Thistrol MCPB | O118: Glyphosate
A119: Rye | C119: Redeem | D119: Curtail | E119: Cinch | F119: Enlite | K119: Select | L119: Trifluralin | O119: G-Max Lite
A120: Safflowers | C120: Remedy | D120: Curtail M | E120: Clarion | F120: Establish | K120: Sonalan | O120: Gramoxone Inteon
A121: Grain Sorghum | C121: Spike | D121: Discover | E121: Confidence | F121: ET | K121: Trifluralin | O121: Intrro
A122: Forage Sorghum | C122: Sterling | D122: ET | E122: CoStarr | F122: Extreme | O122: Landmaster BW
A123: Soybeans | C123: Stinger | D123: Everest | E123: Curtail | F123: FirstRate | O123: Lariat
A124: Sudan grass | C124: Telar | D124: Express | E124: Define | F124: Flexstar L | O124: Marksman
A125: Sunflowers | C125: Tordon | D125: Far-go | E125: Degree Xtra | F125: Fusilade DX | O125: Metolachlor
A126: Spring Wheat | C126: Transline | D126: Finesse | E126: Dicamba | F126: Fusion | O126: Micro-Tech
A127: Winter Wheat | C127: Velpar | D127: Glean XP | E127: Distinct | F127: Gangster | O127: Outlook
C128: Weedmaster | D128: Glyphosate | E128: Dual II Magnum | F128: Glyphosate | O128: Paramount
D129: Gramoxone | E129: Epic | F129: Gramoxone | O129: Peak
D130: Harmony Extra | E130: Eradicane | F130: Harmony GT | O130: Pendimethalin
D131: Harmony GT | E131: Establish | F131: Intrro | O131: Permit
D132: Huskie | E132: ET | F132: Metolachlor | O132: Priority
D133: Maverick | E133: Glyphosate | F133: Micro-Tech | O133: Prowl
D134: MCPA amine | E134: G-Max Lite | F134: Outlook | O134: Sandea
D135: MCPA ester | E135: Gramoxone | F135: Parallel | O135: Sequence
D136: Olympus | E136: Halex GT | F136: Phoenix | O136: Shotgun
D137: Olympus Flex | E137: Harness | F137: Poast | O137: Stalwart
D138: Osprey | E138: Hornet | F138: Poast Plus | O138: Starane
D139: Paramount | E139: Impact | F139: Prefix | O139: Sterling Plus
D140: Peak | E140: Keystone | F140: Propel | O140: Yukon
D141: Puma | E141: Lariat | F141: Prowl
D142: Rave | E142: Laudis | F142: Pursuit
D143: Rimfire | E143: Liberty | F143: Pursuit Plus
D144: Silverado | E144: Lightning | F144: Python
D145: Starane | E145: Lumax | F145: Raptor
D146: Starane NXT | E146: Marksman | F146: Reflex
D147: Starane/Salvo | E147: Metolachlor | F147: Resource
D148: Starane/Sword | E148: Micro-Tech | F148: Rezult
D149: Sterling | E149: NorthStar | F149: Scepter
D150: Stinger | E150: Option | F150: Select
D151: Treflan | E151: Outlook | F151: Select Max
D152: WideMatch | E152: Parallel | F152: Sencor
E153: Pendimax | F153: Sequence
E154: Permit | F154: Sonalan
E155: Priority | F155: Sonic
E156: Propel | F156: Spartan
E157: Prowl | F157: Stalwart
E158: Python | F158: Stellar
E159: Radius | F159: Synchrony XP
E160: Resolve | F160: Targa
E161: Resource | F161: Trifluralin
E162: Sencor | F162: Valor
E163: Shotgun
E164: Spirit
E165: Stalwart
E166: Starane
E167: Status
E168: Steadfast
E169: Sterling Plus
E170: Stinger
E171: Stout
E172: SureStart
E173: Surpass
E174: TopNotch
E175: Treflan
E176: Volley
E177: WideMatch
E178: Yukon
E181: 5 | F181: 6 | G181: 7 | H181: 8 | I181: 9 | J181: 10 | K181: 11 | L181: 12 | M181: 13 | N181: 14 | O181: 15 | P181: 16 | Q181: 17 | R181: 18 | S181: 19 | T181: 20 | U181: 21 | V181: 22 | W181: 23 | X181: 24 | Y181: 25 | Z181: 26 | AA181: 27 | AB181: 28 | AC181: 29 | AD181: 30 | AE181: 31 | AF181: 32 | AG181: 33 | AH181: 34 | AI181: 35 | AJ181: 36 | AK181: 37 | AL181: 38 | AM181: 39 | AN181: 40 | AO181: 41 | AP181: 42 | AQ181: 43 | AR181: 44 | AS181: 45 | AT181: 46 | AU181: 47
A182: 1 | B182: 2 | E182: 2 | F182: 3 | G182: 4 | H182: 5 | I182: 6 | J182: 7 | K182: 8 | L182: 9 | N182: 10 | O182: 11 | Q182: 12 | R182: 13 | S182: 14 | T182: 15 | V182: 16 | W182: 17 | X182: 18
A183: Other | F183: Alfalfa | G183: Alsike clover | H183: Annual Oregon ryegrass | I183: Barley | J183: Buckwheat | K183: Canola | L183: Chickling vetch | M183: Common vetch | N183: Corn | O183: Cowpeas | P183: Crimson clover | Q183: Dry beans | R183: Ethiopian cabbage | S183: Flax | T183: Forage sorghum | U183: Grain sorghum | V183: Hairy vetch | W183: Kale | X183: Lentils | Y183: Millet | Z183: Mustard, oriental or brown | AA183: Mustard, tame yellow | AB183: Oats | AC183: Peas | AD183: Radishes | AE183: Rapeseed | AF183: Red clover | AG183: Safflowers | AH183: Soybeans | AI183: Spring wheat | AJ183: Sudangrass | AK183: Sugarbeets | AL183: Sunflowers | AM183: Sunn hemp | AN183: Sweet clover | AO183: Tall wheatgrass | AP183: Teff grass | AQ183: Triticale | AR183: Turnips | AS183: White clover | AT183: Winter camelina | AU183: Winter wheat or rye
A184: 2,4-D | B184: 2,4-D | F184: 0 | G184: 0 | H184: 0 | I184: 0 | J184: 0 | K184: 0 | L184: 0 | M184: 0 | N184: 0 | O184: 0 | P184: 0 | Q184: 0 | R184: 0 | S184: 0 | T184: 0 | U184: 0 | V184: 0 | W184: 0 | X184: 0 | Y184: 0 | Z184: 0 | AA184: 0 | AB184: 0 | AC184: 0 | AD184: 0 | AE184: 0 | AF184: 0 | AG184: 0 | AH184: 0 | AI184: 0 | AJ184: 0 | AK184: 0 | AL184: 0 | AM184: 0 | AN184: 0 | AO184: 0 | AP184: 0 | AQ184: 0 | AR184: 0 | AS184: 0 | AT184: 0 | AU184: 0
A185: 2,4-D amine | B185: 2,4-D | F185: 0 | G185: 0 | H185: 0 | I185: 0 | J185: 0 | K185: 0 | L185: 0 | M185: 0 | N185: 0 | O185: 0 | P185: 0 | Q185: 0 | R185: 0 | S185: 0 | T185: 0 | U185: 0 | V185: 0 | W185: 0 | X185: 0 | Y185: 0 | Z185: 0 | AA185: 0 | AB185: 0 | AC185: 0 | AD185: 0 | AE185: 0 | AF185: 0 | AG185: 0 | AH185: 0 | AI185: 0 | AJ185: 0 | AK185: 0 | AL185: 0 | AM185: 0 | AN185: 0 | AO185: 0 | AP185: 0 | AQ185: 0 | AR185: 0 | AS185: 0 | AT185: 0 | AU185: 0
A186: 2,4-D ester | B186: 2,4-D | F186: 0 | G186: 0 | H186: 0 | I186: 0 | J186: 0 | K186: 0 | L186: 0 | M186: 0 | N186: 0 | O186: 0 | P186: 0 | Q186: 0 | R186: 0 | S186: 0 | T186: 0 | U186: 0 | V186: 0 | W186: 0 | X186: 0 | Y186: 0 | Z186: 0 | AA186: 0 | AB186: 0 | AC186: 0 | AD186: 0 | AE186: 0 | AF186: 0 | AG186: 0 | AH186: 0 | AI186: 0 | AJ186: 0 | AK186: 0 | AL186: 0 | AM186: 0 | AN186: 0 | AO186: 0 | AP186: 0 | AQ186: 0 | AR186: 0 | AS186: 0 | AT186: 0 | AU186: 0
A187: Accent | B187: nicosulfuron | F187: 12 | G187: 12 | H187: 4 | I187: 8 | J187: 18 | K187: 18 | L187: 18 | M187: 18 | N187: 0 | O187: 10 | P187: 12 | Q187: 10 | R187: 18 | S187: 18 | T187: 10 | U187: 10 | V187: 18 | W187: 18 | X187: 18 | Y187: 18 | Z187: 18 | AA187: 18 | AB187: 8 | AC187: 10 | AD187: 18 | AE187: 18 | AF187: 12 | AG187: 18 | AH187: 0.5 | AI187: 8 | AJ187: 10 | AK187: 18 | AL187: 18 | AM187: 12 | AN187: 12 | AO187: 4 | AP187: 10 | AQ187: 4 | AR187: 18 | AS187: 12 | AT187: 18 | AU187: 4
A188: Accent Gold | B188: clopyralid | C188: flumetsulam | D188: nicosulfuron | E188: rimsulfuron | F188: 10.5 | G188: 10.5 | H188: 4 | I188: 8 | J188: 26 | K188: 26 | L188: 26 | M188: 26 | N188: 0 | O188: 10.5 | P188: 10.5 | Q188: 10.5 | R188: 26 | S188: 26 | T188: 12 | U188: 12 | V188: 26 | W188: 26 | X188: 26 | Y188: 26 | Z188: 26 | AA188: 26 | AB188: 8 | AC188: 18 | AD188: 26 | AE188: 26 | AF188: 10.5 | AG188: 26 | AH188: 10.5 | AI188: 8 | AJ188: 12 | AK188: 26 | AL188: 18 | AM188: 10.5 | AN188: 10.5 | AO188: 4 | AP188: 12 | AQ188: 4 | AR188: 26 | AS188: 10.5 | AT188: 26 | AU188: 4
A189: Acetochlor | B189: acetochlor | F189: 24 | G189: 24 | H189: 4 | I189: 24 | J189: 24 | K189: 24 | L189: 24 | M189: 24 | N189: 0 | O189: 24 | P189: 24 | Q189: 24 | R189: 24 | S189: 24 | T189: 12 | U189: 12 | V189: 24 | W189: 24 | X189: 24 | Y189: 24 | Z189: 24 | AA189: 24 | AB189: 24 | AC189: 24 | AD189: 24 | AE189: 24 | AF189: 24 | AG189: 24 | AH189: 12 | AI189: 4 | AJ189: 12 | AK189: 24 | AL189: 24 | AM189: 24 | AN189: 24 | AO189: 4 | AP189: 12 | AQ189: 4 | AR189: 24 | AS189: 24 | AT189: 24 | AU189: 4
A190: Achieve | B190: tralkoxydim | F190: 0 | G190: 0 | H190: 0 | I190: 0 | J190: 0 | K190: 0 | L190: 0 | M190: 0 | N190: 0 | O190: 0 | P190: 0 | Q190: 0 | R190: 0 | S190: 0 | T190: 0 | U190: 0 | V190: 0 | W190: 0 | X190: 0 | Y190: 0 | Z190: 0 | AA190: 0 | AB190: 0 | AC190: 0 | AD190: 0 | AE190: 0 | AF190: 0 | AG190: 0 | AH190: 0 | AI190: 0 | AJ190: 0 | AK190: 0 | AL190: 0 | AM190: 0 | AN190: 0 | AO190: 0 | AP190: 0 | AQ190: 0 | AR190: 0 | AS190: 0 | AT190: 0 | AU190: 0
A191: Affinity | B191: trifensulfuron | C191: tribenuron | F191: 9 | G191: 9 | H191: 3 | I191: 3 | J191: 30 | K191: 18 | L191: 18 | M191: 18 | N191: 9 | O191: 9 | P191: 9 | Q191: 9 | R191: 18 | S191: 18 | T191: 9 | U191: 9 | V191: 18 | W191: 18 | X191: 18 | Y191: 30 | Z191: 18 | AA191: 18 | AB191: 3 | AC191: 9 | AD191: 18 | AE191: 18 | AF191: 9 | AG191: 30 | AH191: 0 | AI191: 3 | AJ191: 9 | AK191: 18 | AL191: 9 | AM191: 9 | AN191: 9 | AO191: 3 | AP191: 9 | AQ191: 3 | AR191: 18 | AS191: 9 | AT191: 18 | AU191: 3
A192: Agility | B192: thifensulfuron | C192: tribenuron | D192: metsulfuron | F192: 34 | G192: 34 | H192: 1 | I192: 10 | J192: 34 | K192: 34 | L192: 34 | M192: 34 | N192: 12 | O192: 34 | P192: 34 | Q192: 34 | R192: 34 | S192: 22 | T192: 12 | U192: 12 | V192: 34 | W192: 34 | X192: 34 | Y192: 12 | Z192: 34 | AA192: 34 | AB192: 10 | AC192: 34 | AD192: 34 | AE192: 34 | AF192: 34 | AG192: 22 | AH192: 34 | AI192: 1 | AJ192: 12 | AK192: 34 | AL192: 22 | AM192: 34 | AN192: 34 | AO192: 1 | AP192: 12 | AQ192: 1 | AR192: 34 | AS192: 34 | AT192: 34 | AU192: 1
A193: Aim | B193: carfentrazone | F193: 12 | G193: 12 | H193: 0 | I193: 0 | J193: 12 | K193: 12 | L193: 1 | M193: 1 | N193: 0 | O193: 1 | P193: 12 | Q193: 1 | R193: 12 | S193: 12 | T193: 0 | U193: 0 | V193: 1 | W193: 12 | X193: 1 | Y193: 1 | Z193: 12 | AA193: 12 | AB193: 0 | AC193: 1 | AD193: 12 | AE193: 12 | AF193: 12 | AG193: 12 | AH193: 0 | AI193: 0 | AJ193: 0 | AK193: 12 | AL193: 12 | AM193: 12 | AN193: 12 | AO193: 0 | AP193: 0 | AQ193: 0 | AR193: 12 | AS193: 12 | AT193: 12 | AU193: 0
A194: Aim EW | B194: carfentrazone | F194: 12 | G194: 12 | H194: 0 | I194: 0 | J194: 12 | K194: 12 | L194: 1 | M194: 1 | N194: 0 | O194: 1 | P194: 12 | Q194: 1 | R194: 12 | S194: 12 | T194: 0 | U194: 0 | V194: 1 | W194: 12 | X194: 1 | Y194: 1 | Z194: 12 | AA194: 12 | AB194: 0 | AC194: 1 | AD194: 12 | AE194: 12 | AF194: 12 | AG194: 12 | AH194: 0 | AI194: 0 | AJ194: 0 | AK194: 12 | AL194: 12 | AM194: 12 | AN194: 12 | AO194: 0 | AP194: 0 | AQ194: 0 | AR194: 12 | AS194: 12 | AT194: 12 | AU194: 0
A195: Ally | B195: metsulfuron | F195: 34 | G195: 34 | H195: 1 | I195: 10 | J195: 34 | K195: 34 | L195: 34 | M195: 34 | N195: 12 | O195: 34 | P195: 34 | Q195: 34 | R195: 34 | S195: 22 | T195: 12 | U195: 12 | V195: 34 | W195: 34 | X195: 34 | Y195: 12 | Z195: 34 | AA195: 34 | AB195: 10 | AC195: 34 | AD195: 34 | AE195: 34 | AF195: 34 | AG195: 22 | AH195: 34 | AI195: 1 | AJ195: 12 | AK195: 34 | AL195: 22 | AM195: 34 | AN195: 34 | AO195: 1 | AP195: 12 | AQ195: 1 | AR195: 34 | AS195: 34 | AT195: 34 | AU195: 1
A196: Ally Extra | B196: thifensulfuron | C196: tribenuron | D196: metsulfuron | F196: 34 | G196: 34 | H196: 1 | I196: 10 | J196: 34 | K196: 34 | L196: 34 | M196: 34 | N196: 12 | O196: 34 | P196: 34 | Q196: 34 | R196: 34 | S196: 22 | T196: 12 | U196: 12 | V196: 34 | W196: 34 | X196: 34 | Y196: 12 | Z196: 34 | AA196: 34 | AB196: 10 | AC196: 34 | AD196: 34 | AE196: 34 | AF196: 34 | AG196: 22 | AH196: 34 | AI196: 1 | AJ196: 12 | AK196: 34 | AL196: 22 | AM196: 34 | AN196: 34 | AO196: 1 | AP196: 12 | AQ196: 1 | AR196: 34 | AS196: 34 | AT196: 34 | AU196: 1
A197: Amber | B197: triasulfuron | F197: 24 | G197: 24 | H197: 24 | I197: 6 | J197: 24 | K197: 24 | L197: 24 | M197: 24 | N197: 22 | O197: 24 | P197: 24 | Q197: 24 | R197: 24 | S197: 24 | T197: 24 | U197: 24 | V197: 24 | W197: 24 | X197: 24 | Y197: 4 | Z197: 24 | AA197: 24 | AB197: 6 | AC197: 24 | AD197: 24 | AE197: 24 | AF197: 24 | AG197: 24 | AH197: 36 | AI197: 0 | AJ197: 24 | AK197: 24 | AL197: 24 | AM197: 24 | AN197: 24 | AO197: 24 | AP197: 24 | AQ197: 0 | AR197: 24 | AS197: 24 | AT197: 24 | AU197: 0
A198: Amplify | B198: cloransulam | F198: 9 | G198: 9 | H198: 3 | I198: 30 | J198: 30 | K198: 30 | L198: 30 | M198: 30 | N198: 9 | O198: 9 | P198: 9 | Q198: 9 | R198: 30 | S198: 30 | T198: 9 | U198: 9 | V198: 30 | W198: 30 | X198: 30 | Y198: 30 | Z198: 30 | AA198: 30 | AB198: 30 | AC198: 30 | AD198: 30 | AE198: 30 | AF198: 9 | AG198: 30 | AH198: 0 | AI198: 3 | AJ198: 9 | AK198: 30 | AL198: 30 | AM198: 9 | AN198: 9 | AO198: 3 | AP198: 9 | AQ198: 3 | AR198: 30 | AS198: 9 | AT198: 30 | AU198: 3
A199: Assert | B199: imazamethabenz | F199: 15 | G199: 15 | H199: 12 | I199: 12 | J199: 15 | K199: 15 | L199: 15 | M199: 15 | N199: 12 | O199: 12 | P199: 15 | Q199: 12 | R199: 15 | S199: 15 | T199: 15 | U199: 15 | V199: 15 | W199: 15 | X199: 15 | Y199: 15 | Z199: 15 | AA199: 15 | AB199: 15 | AC199: 15 | AD199: 15 | AE199: 15 | AF199: 15 | AG199: 12 | AH199: 12 | AI199: 12 | AJ199: 15 | AK199: 15 | AL199: 12 | AM199: 15 | AN199: 15 | AO199: 12 | AP199: 15 | AQ199: 12 | AR199: 15 | AS199: 15 | AT199: 15 | AU199: 12
A200: Assure II | B200: quizalofop | F200: 3 | G200: 3 | H200: 0 | I200: 0 | J200: 0 | K200: 0 | L200: 0 | M200: 0 | N200: 0 | O200: 0 | P200: 3 | Q200: 0 | R200: 0 | S200: 0 | T200: 0 | U200: 0 | V200: 0 | W200: 0 | X200: 0 | Y200: 0 | Z200: 0 | AA200: 0 | AB200: 0 | AC200: 0 | AD200: 0 | AE200: 0 | AF200: 3 | AG200: 0 | AH200: 0 | AI200: 0 | AJ200: 0 | AK200: 0 | AL200: 0 | AM200: 3 | AN200: 3 | AO200: 0 | AP200: 0 | AQ200: 0 | AR200: 0 | AS200: 3 | AT200: 0 | AU200: 0
A201: Atrazine | B201: atrazine | F201: 24 | G201: 24 | H201: 24 | I201: 24 | J201: 24 | K201: 24 | L201: 24 | M201: 24 | N201: 0 | O201: 24 | P201: 24 | Q201: 24 | R201: 24 | S201: 24 | T201: 0 | U201: 0 | V201: 24 | W201: 24 | X201: 24 | Y201: 24 | Z201: 24 | AA201: 24 | AB201: 24 | AC201: 24 | AD201: 24 | AE201: 24 | AF201: 24 | AG201: 24 | AH201: 12 | AI201: 24 | AJ201: 0 | AK201: 24 | AL201: 24 | AM201: 24 | AN201: 24 | AO201: 24 | AP201: 0 | AQ201: 24 | AR201: 24 | AS201: 24 | AT201: 24 | AU201: 24
A202: Authority | B202: sulfentrazone | F202: 12 | G202: 12 | H202: 4 | I202: 4 | J202: 12 | K202: 30 | L202: 18 | M202: 18 | N202: 10 | O202: 12 | P202: 12 | Q202: 12 | R202: 30 | S202: 18 | T202: 10 | U202: 10 | V202: 18 | W202: 30 | X202: 18 | Y202: 12 | Z202: 30 | AA202: 30 | AB202: 4 | AC202: 30 | AD202: 30 | AE202: 30 | AF202: 12 | AG202: 30 | AH202: 0 | AI202: 4 | AJ202: 10 | AK202: 30 | AL202: 30 | AM202: 12 | AN202: 12 | AO202: 4 | AP202: 10 | AQ202: 4 | AR202: 30 | AS202: 12 | AT202: 30 | AU202: 4
A203: Authority First | B203: sulfentrazone | C203: cloransulam | F203: 12 | G203: 12 | H203: 4 | I203: 12 | J203: 30 | K203: 24 | L203: 30 | M203: 30 | N203: 10 | O203: 12 | P203: 12 | Q203: 12 | R203: 24 | S203: 30 | T203: 10 | U203: 10 | V203: 30 | W203: 24 | X203: 30 | Y203: 30 | Z203: 30 | AA203: 30 | AB203: 12 | AC203: 12 | AD203: 30 | AE203: 30 | AF203: 12 | AG203: 30 | AH203: 0 | AI203: 4 | AJ203: 10 | AK203: 30 | AL203: 30 | AM203: 12 | AN203: 12 | AO203: 4 | AP203: 10 | AQ203: 12 | AR203: 30 | AS203: 12 | AT203: 30 | AU203: 4
A204: Authority MTZ | B204: sulfentrazone | C204: metribuzin | F204: 12 | G204: 12 | H204: 4 | I204: 4 | J204: 12 | K204: 30 | L204: 18 | M204: 18 | N204: 10 | O204: 12 | P204: 12 | Q204: 12 | R204: 30 | S204: 18 | T204: 12 | U204: 12 | V204: 18 | W204: 30 | X204: 18 | Y204: 12 | Z204: 30 | AA204: 30 | AB204: 12 | AC204: 30 | AD204: 30 | AE204: 30 | AF204: 12 | AG204: 30 | AH204: 0 | AI204: 4 | AJ204: 12 | AK204: 30 | AL204: 30 | AM204: 12 | AN204: 12 | AO204: 4 | AP204: 12 | AQ204: 4 | AR204: 30 | AS204: 12 | AT204: 30 | AU204: 4
A205: Autumn | B205: iodosulfuron | F205: 18 | G205: 18 | H205: 18 | I205: 8 | J205: 18 | K205: 18 | L205: 18 | M205: 18 | N205: 1 | O205: 18 | P205: 18 | Q205: 18 | R205: 18 | S205: 18 | T205: 9 | U205: 9 | V205: 18 | W205: 18 | X205: 18 | Y205: 18 | Z205: 18 | AA205: 18 | AB205: 9 | AC205: 18 | AD205: 18 | AE205: 18 | AF205: 18 | AG205: 18 | AH205: 3 | AI205: 8 | AJ205: 18 | AK205: 18 | AL205: 18 | AM205: 18 | AN205: 18 | AO205: 18 | AP205: 18 | AQ205: 4 | AR205: 18 | AS205: 18 | AT205: 18 | AU205: 4
A206: Avalanche | B206: carfentrazone | F206: 12 | G206: 12 | H206: 0 | I206: 0 | J206: 12 | K206: 12 | L206: 1 | M206: 1 | N206: 0 | O206: 1 | P206: 12 | Q206: 1 | R206: 12 | S206: 12 | T206: 0 | U206: 0 | V206: 1 | W206: 12 | X206: 1 | Y206: 1 | Z206: 12 | AA206: 12 | AB206: 0 | AC206: 1 | AD206: 12 | AE206: 12 | AF206: 12 | AG206: 12 | AH206: 0 | AI206: 0 | AJ206: 0 | AK206: 12 | AL206: 12 | AM206: 12 | AN206: 12 | AO206: 0 | AP206: 0 | AQ206: 0 | AR206: 12 | AS206: 12 | AT206: 12 | AU206: 0
... 189 more rows
